[Event "DVM U10 2024"]
[Site "Duesseldorf"]
[Date "2024.12.28"]
[Round "5"]
[White "Dombert, Johannes"]
[Black "Oezkurt, Alper"]
[Result "1/2-1/2"]
[ECO "C02"]
[WhiteElo "1611"]
[BlackElo "1533"]
[Annotator "NA RC"]
[PlyCount "93"]
[EventDate "2024.12.23"]
[EventType "team-tourn"]
[EventRounds "7"]
[EventCountry "GER"]
[SourceTitle "playchess.com"]
[Source "ChessBase"]
[SourceQuality "1"]
[TimeControl "3300+5"]

1. e4 {[%emt 0:00:02]} e6 {[%emt 0:00:14]} 2. d4 {[%emt 0:00:03]} d5 {[%emt 0:00:05]} 3. e5 {[%emt 0:00:05]} c5 {[%emt 0:00:07]} 4. c3 {[%emt 0:00:02]} Nc6 {[%emt 0:00:07]} 5. Nf3 {[%emt 0:00:03]} Qb6 {[%emt 0:00:05]} 6. Bd3 {[%emt 0:00:11]} Bd7 {[%emt 0:00:07]} 7. O-O {[%emt 0:00:33]} cxd4 {[%emt 0:00:07]} 8. Re1 {[%emt 0:00:13]} Bc5 {[%emt 0:01:08]} 9. cxd4 {[%emt 0:07:39]} Nxd4 {[%emt 0:00:16]} 10. Be3 {[%emt 0:01:13]} Nxf3+ {[%emt 0:01:25]} 11. Qxf3 {[%emt 0:00:16]} Bxe3 {[%emt 0:00:08]} 12. Qxe3 {[%emt 0:00:10]} Qxe3 {[%emt 0:00:50]} 13. Rxe3 {[%emt 0:00:09]} Ne7 {[%emt 0:00:06]} 14. Nd2 {[%emt 0:01:25]} Ng6 {[%emt 0:00:11]} 15. Rc1 {[%emt 0:01:18]} Bc6 {[%emt 0:00:09]} 16. g3 {[%emt 0:01:48]} Ne7 {[%emt 0:01:48]} 17. Nb3 {[%emt 0:05:38]} Rd8 {[%emt 0:01:40]} 18. Nd4 {[%emt 0:00:39]} O-O {[%emt 0:00:42]} 19. Re2 {[%emt 0:02:28]} Rc8 {[%emt 0:00:47]} 20. Rec2 {[%emt 0:00:46]} Rfd8 {[%emt 0:00:27]} 21. Kf1 {[%emt 0:03:23]} Bd7 {[%emt 0:02:32]} 22. f4 {[%emt 0:01:38]} Rxc2 {[%emt 0:03:29]} 23. Rxc2 {[%emt 0:00:06]} Nc6 {[%emt 0:00:27]} 24. Nxc6 {[%emt 0:01:36]} Bxc6 {[%emt 0:00:08]} 25. Ke2 {[%emt 0:01:43]} h6 {[%emt 0:00:05]} 26. b4 {[%emt 0:01:53]} a6 {[%emt 0:01:01]} 27. a3 {[%emt 0:01:44]} Kf8 {[%emt 0:03:03]} 28. h3 {[%emt 0:02:41]} Ke7 {[%emt 0:00:53]} 29. Rc1 {[%emt 0:01:51]} d4 {[%emt 0:01:07]} 30. Rc5 {[%emt 0:01:07]} Rd5 {[%emt 0:00:26]} 31. Bc4 {[%emt 0:00:52]} Rxc5 {[%emt 0:01:36]} 32. bxc5 {[%emt 0:00:09]} g6 {[%emt 0:01:47]} 33. Kd3 {[%emt 0:00:19]} Bg2 {[%emt 0:00:16]} 34. h4 {[%emt 0:00:12]} h5 {[%emt 0:00:41]} 35. Kxd4 {[%emt 0:00:09]} Kd7 {[%emt 0:00:13]} 36. Bb3 {[%emt 0:00:28]} Bc6 {[%emt 0:00:07]} 37. a4 {[%emt 0:00:45]} a5 {[%emt 0:01:29]} 38. Kc3 {[%emt 0:01:15]} Kc7 {[%emt 0:00:41]} 39. Kd4 {[%emt 0:00:25]} Kb8 {[%emt 0:00:39]} 40. Kc3 {[%emt 0:00:19]} Be8 {[%emt 0:00:21]} 41. Kd3 {[%emt 0:00:27]} Bd7 {[%emt 0:00:24]} 42. Kc3 {[%emt 0:00:11]} Kc8 {[%emt 0:00:13]} 43. Kd3 {[%emt 0:00:09]} Bc6 {[%emt 0:00:27]} 44. Kc3 {[%emt 0:00:05]} Kd8 {[%emt 0:00:06]} 45. Kd3 {[%emt 0:00:22]} Ke7 {[%emt 0:00:07]} 46. Ke3 {[%emt 0:00:17]} Kf8 {[%emt 0:00:26]} 47. Bc2 {[%emt 0:00:19]} 1/2-1/2

[Event "DVM U10 2024"]
[Site "Duesseldorf"]
[Date "2024.12.28"]
[Round "5"]
[White "Ni, Wilhelm Zeyin"]
[Black "von Gehlen, Elian"]
[Result "1/2-1/2"]
[ECO "B11"]
[WhiteElo "1611"]
[BlackElo "1464"]
[Annotator "NA RC"]
[PlyCount "79"]
[EventDate "2024.12.23"]
[EventType "team-tourn"]
[EventRounds "7"]
[EventCountry "GER"]
[SourceTitle "playchess.com"]
[Source "ChessBase"]
[SourceQuality "1"]
[TimeControl "3300+5"]

1. e4 {[%emt 0:00:04]} c6 {[%emt 0:00:05]} 2. Nf3 {[%emt 0:00:07]} d5 {[%emt 0:00:07]} 3. Nc3 {[%emt 0:00:03]} dxe4 {[%emt 0:00:07]} 4. Nxe4 {[%emt 0:00:05]} Nf6 {[%emt 0:00:08]} 5. Qe2 {[%emt 0:00:05]} Nxe4 {[%emt 0:00:07]} 6. Qxe4 {[%emt 0:00:14]} Nd7 {[%emt 0:00:09]} 7. d4 {[%emt 0:01:49]} Nf6 {[%emt 0:00:05]} 8. Qd3 {[%emt 0:00:15]} Bg4 {[%emt 0:00:15]} 9. Be2 {[%emt 0:00:35]} e6 {[%emt 0:00:47]} 10. O-O {[%emt 0:00:44]} Bd6 {[%emt 0:00:10]} 11. Be3 {[%emt 0:01:58]} Qc7 {[%emt 0:00:14]} 12. h3 {[%emt 0:00:32]} Bh5 {[%emt 0:00:29]} 13. Rfe1 {[%emt 0:02:56]} Nd5 {[%emt 0:03:30]} 14. c3 {[%emt 0:05:39]} Bf4 {[%emt 0:02:18]} 15. Rad1 {[%emt 0:06:13]} Nxe3 {[%emt 0:01:15]} 16. fxe3 {[%emt 0:00:59]} Bg3 {[%emt 0:00:22]} 17. Rf1 {[%emt 0:00:07]} h6 {[%emt 0:02:41]} 18. c4 {[%emt 0:07:44]} g5 {[%emt 0:00:29]} 19. Nd2 {[%emt 0:07:15]} Bxe2 {[%emt 0:01:30]} 20. Qxe2 {[%emt 0:00:11]} h5 {[%emt 0:00:31]} 21. Ne4 {[%emt 0:01:42]} Bh2+ 22. Kh1 {[%emt 0:00:00]} O-O-O {[%emt 0:00:53]} 23. Qf2 {[%emt 0:01:19]} f5 {[%emt 0:00:30]} 24. Nxg5 {[%emt 0:00:20]} Rde8 {[%emt 0:01:01]} 25. Nf3 {[%emt 0:00:52]} Bg3 {[%emt 0:00:15]} 26. Qe2 {[%emt 0:00:33]} Rhg8 {[%emt 0:00:33]} 27. e4 {[%emt 0:02:19]} Qg7 {[%emt 0:03:22]} 28. e5 {[%emt 0:01:49]} Rd8 {[%emt 0:04:43]} 29. Rd3 {[%emt 0:01:53]} c5 {[%emt 0:02:48]} 30. d5 {[%emt 0:00:32]} Qd7 {[%emt 0:00:20]} 31. d6 {[%emt 0:00:23]} Bf4 {[%emt 0:01:18]} 32. Rb1 {[%emt 0:02:02]} Qa4 {[%emt 0:01:18]} 33. b3 {[%emt 0:00:11]} Qb4 {[%emt 0:00:10]} 34. Rbd1 {[%emt 0:00:40]} Rg7 {[%emt 0:00:25]} 35. Qf2 {[%emt 0:01:13]} Kd7 {[%emt 0:04:07]} 36. Qb2 {[%emt 0:01:06]} Rdg8 {[%emt 0:00:20]} 37. a3 {[%emt 0:00:33]} Qb6 {[%emt 0:00:13]} 38. Ne1 {[%emt 0:00:10]} h4 {[%emt 0:02:28]} 39. Nf3 {[%emt 0:00:31]} Bg3 40. Ne1 {[%emt 0:00:01]} 1/2-1/2

[Event "DVM U10 2024"]
[Site "Duesseldorf"]
[Date "2024.12.28"]
[Round "5"]
[White "Wang, Hanyu"]
[Black "Hahn, David"]
[Result "1-0"]
[ECO "B50"]
[WhiteElo "1606"]
[BlackElo "1887"]
[Annotator "NA RC"]
[PlyCount "101"]
[EventDate "2024.12.23"]
[EventType "team-tourn"]
[EventRounds "7"]
[EventCountry "GER"]
[SourceTitle "playchess.com"]
[Source "ChessBase"]
[SourceQuality "1"]
[TimeControl "3300+5"]

1. e4 {[%emt 0:00:04]} c5 {[%emt 0:00:03]} 2. Nf3 {[%emt 0:00:09]} d6 {[%emt 0:00:17]} 3. Nc3 {[%emt 0:00:05]} g6 {[%emt 0:00:16]} 4. Bb5+ {[%emt 0:00:17]} Bd7 {[%emt 0:00:11]} 5. Bxd7+ {[%emt 0:00:09]} Qxd7 {[%emt 0:00:08]} 6. d3 {[%emt 0:00:07]} Bg7 {[%emt 0:00:05]} 7. O-O {[%emt 0:00:16]} Nf6 {[%emt 0:00:38]} 8. Bg5 {[%emt 0:00:13]} O-O {[%emt 0:00:11]} 9. e5 {[%emt 0:00:27]} Ne8 {[%emt 0:01:02]} 10. exd6 {[%emt 0:00:09]} Qxd6 {[%emt 0:00:31]} 11. Qd2 {[%emt 0:00:25]} Nc6 {[%emt 0:01:51]} 12. Rfe1 {[%emt 0:00:21]} Nf6 {[%emt 0:00:36]} 13. Bf4 {[%emt 0:00:35]} Qd8 {[%emt 0:00:47]} 14. Rad1 {[%emt 0:00:13]} Nh5 {[%emt 0:00:29]} 15. Bg3 {[%emt 0:00:13]} Nxg3 {[%emt 0:00:14]} 16. hxg3 {[%emt 0:00:07]} e6 {[%emt 0:00:22]} 17. Re2 {[%emt 0:04:38]} Nd4 {[%emt 0:00:12]} 18. Nxd4 {[%emt 0:00:13]} cxd4 {[%emt 0:00:08]} 19. Ne4 {[%emt 0:00:06]} Re8 {[%emt 0:01:36]} 20. c3 {[%emt 0:01:38]} dxc3 {[%emt 0:00:25]} 21. bxc3 {[%emt 0:00:05]} Rc8 {[%emt 0:01:51]} 22. c4 {[%emt 0:00:13]} Qd4 {[%emt 0:02:28]} 23. c5 {[%emt 0:01:49]} Qb2 {[%emt 0:00:36]} 24. Qxb2 {[%emt 0:00:11]} Bxb2 {[%emt 0:00:06]} 25. Nd6 {[%emt 0:00:18]} Ba3 {[%emt 0:00:48]} 26. Nxe8 {[%emt 0:00:13]} Rxe8 {[%emt 0:00:06]} 27. d4 {[%emt 0:00:20]} Rd8 {[%emt 0:00:33]} 28. f3 {[%emt 0:00:31]} e5 {[%emt 0:00:14]} 29. Rxe5 {[%emt 0:00:54]} Bb2 {[%emt 0:00:25]} 30. Re4 {[%emt 0:00:29]} b6 {[%emt 0:00:22]} 31. cxb6 {[%emt 0:00:38]} axb6 {[%emt 0:00:08]} 32. Kf2 {[%emt 0:00:06]} Rc8 {[%emt 0:01:20]} 33. Re2 {[%emt 0:00:53]} Ba3 {[%emt 0:00:25]} 34. d5 {[%emt 0:00:14]} Bc5+ {[%emt 0:00:15]} 35. Kf1 {[%emt 0:01:08]} Kg7 {[%emt 0:01:36]} 36. d6 {[%emt 0:00:00]} b5 {[%emt 0:00:50]} 37. d7 {[%emt 0:00:00]} Rd8 {[%emt 0:00:03]} 38. Re8 {[%emt 0:00:00]} Bb6 {[%emt 0:00:59]} 39. Rxd8 {[%emt 0:00:00]} Bxd8 {[%emt 0:00:08]} 40. Ke2 {[%emt 0:00:02]} Kf6 {[%emt 0:00:12]} 41. Kd3 {[%emt 0:00:12]} Ke7 {[%emt 0:00:25]} 42. Kc3 {[%emt 0:00:20]} Ba5+ {[%emt 0:01:07]} 43. Kb3 {[%emt 0:00:10]} Kd8 {[%emt 0:00:16]} 44. a4 {[%emt 0:00:15]} bxa4+ {[%emt 0:00:33]} 45. Kxa4 {[%emt 0:00:06]} Bb6 {[%emt 0:00:15]} 46. Kb5 {[%emt 0:00:08]} Bf2 {[%emt 0:00:09]} 47. g4 {[%emt 0:00:08]} h5 {[%emt 0:00:10]} 48. gxh5 {[%emt 0:00:09]} gxh5 {[%emt 0:00:05]} 49. Kc6 {[%emt 0:00:03]} Bg3 {[%emt 0:00:18]} 50. Rd2 {[%emt 0:00:34]} Bf4 {[%emt 0:00:22]} 51. Re2 {[%emt 0:00:57]} 1-0

[Event "DVM U10 2024"]
[Site "Duesseldorf"]
[Date "2024.12.28"]
[Round "5"]
[White "Kinateder, Vitus"]
[Black "Vignesh Bama, Dev"]
[Result "1-0"]
[ECO "C44"]
[WhiteElo "1605"]
[BlackElo "1633"]
[Annotator "NA RC"]
[PlyCount "89"]
[EventDate "2024.12.23"]
[EventType "team-tourn"]
[EventRounds "7"]
[EventCountry "GER"]
[SourceTitle "playchess.com"]
[Source "ChessBase"]
[SourceQuality "1"]
[TimeControl "3300+5"]

1. e4 {[%emt 0:00:01]} e5 {[%emt 0:00:06]} 2. Nf3 {[%emt 0:00:04]} Nc6 {[%emt 0:00:04]} 3. d4 {[%emt 0:00:05]} exd4 {[%emt 0:00:04]} 4. Bc4 {[%emt 0:00:04]} Bb4+ {[%emt 0:00:04]} 5. c3 {[%emt 0:00:06]} dxc3 {[%emt 0:00:04]} 6. bxc3 {[%emt 0:00:03]} Ba5 {[%emt 0:00:06]} 7. O-O {[%emt 0:00:06]} Nh6 {[%emt 0:00:07]} 8. Qb3 {[%emt 0:00:23]} Qe7 {[%emt 0:00:24]} 9. Ba3 {[%emt 0:00:22]} d6 {[%emt 0:00:08]} 10. Re1 {[%emt 0:00:30]} Be6 {[%emt 0:00:12]} 11. Bxe6 {[%emt 0:00:33]} fxe6 {[%emt 0:00:40]} 12. Qxb7 {[%emt 0:00:17]} O-O {[%emt 0:00:51]} 13. Qxc6 {[%emt 0:00:25]} Bb6 {[%emt 0:00:08]} 14. e5 {[%emt 0:00:23]} Rad8 {[%emt 0:00:32]} 15. exd6 {[%emt 0:00:30]} cxd6 {[%emt 0:00:41]} 16. Nbd2 {[%emt 0:01:22]} Ng4 {[%emt 0:00:19]} 17. Rf1 {[%emt 0:03:07]} e5 {[%emt 0:01:54]} 18. h3 {[%emt 0:00:19]} Nf6 {[%emt 0:00:52]} 19. Nc4 {[%emt 0:00:28]} Bc5 {[%emt 0:00:20]} 20. Bxc5 {[%emt 0:00:14]} dxc5 {[%emt 0:00:09]} 21. Ncxe5 {[%emt 0:00:52]} Rc8 {[%emt 0:01:01]} 22. Qa4 {[%emt 0:01:11]} Ne4 {[%emt 0:02:16]} 23. Qxe4 {[%emt 0:00:50]} Rxf3 {[%emt 0:00:33]} 24. gxf3 {[%emt 0:00:25]} Qg5+ {[%emt 0:00:11]} 25. Qg4 {[%emt 0:00:06]} Qxe5 {[%emt 0:00:09]} 26. Qxc8+ {[%emt 0:00:06]} Kf7 {[%emt 0:00:11]} 27. Qd7+ {[%emt 0:00:14]} Kg6 {[%emt 0:00:10]} 28. Rfe1 {[%emt 0:00:18]} Qg5+ {[%emt 0:00:18]} 29. Qg4 {[%emt 0:00:08]} Qxg4+ {[%emt 0:00:12]} 30. fxg4 {[%emt 0:00:11]} Kg5 {[%emt 0:00:06]} 31. Re7 {[%emt 0:00:09]} Kh4 {[%emt 0:00:12]} 32. Rxg7 {[%emt 0:00:13]} Kxh3 {[%emt 0:00:10]} 33. Rxh7+ {[%emt 0:00:05]} Kxg4 {[%emt 0:00:06]} 34. Rxa7 {[%emt 0:00:06]} c4 {[%emt 0:00:06]} 35. Rc7 {[%emt 0:00:04]} Kf3 {[%emt 0:00:06]} 36. Rxc4 {[%emt 0:00:10]} Ke2 {[%emt 0:00:08]} 37. Re4+ {[%emt 0:00:06]} Kf3 {[%emt 0:00:33]} 38. Re8 {[%emt 0:00:30]} Kf4 {[%emt 0:00:00]} 39. f3 {[%emt 0:00:06]} Kg3 {[%emt 0:00:00]} 40. f4 {[%emt 0:00:07]} Kf3 {[%emt 0:00:00]} 41. Rf1+ {[%emt 0:00:06]} Kg3 {[%emt 0:00:06]} 42. f5 {[%emt 0:00:06]} Kh3 {[%emt 0:00:00]} 43. Rg8 {[%emt 0:00:08]} Kh4 {[%emt 0:00:13]} 44. Rf2 {[%emt 0:00:05]} Kh5 {[%emt 0:00:06]} 45. Rh2# {[%emt 0:00:30]} 1-0

[Event "DVM U10 2024"]
[Site "Duesseldorf"]
[Date "2024.12.28"]
[Round "5"]
[White "Elli, Emeric"]
[Black "Hornych, Fridtjof"]
[Result "1/2-1/2"]
[ECO "B13"]
[WhiteElo "1574"]
[BlackElo "1053"]
[Annotator "NA RC"]
[PlyCount "110"]
[EventDate "2024.12.23"]
[EventType "team-tourn"]
[EventRounds "7"]
[EventCountry "GER"]
[SourceTitle "playchess.com"]
[Source "ChessBase"]
[SourceQuality "1"]
[TimeControl "3300+5"]

1. e4 {[%emt 0:00:01]} c6 {[%emt 0:00:05]} 2. d4 {[%emt 0:00:05]} d5 {[%emt 0:00:06]} 3. exd5 {[%emt 0:00:06]} cxd5 {[%emt 0:00:12]} 4. Bd3 {[%emt 0:00:09]} Nf6 {[%emt 0:00:16]} 5. h3 {[%emt 0:00:25]} e6 {[%emt 0:00:09]} 6. Nf3 {[%emt 0:00:39]} Nc6 {[%emt 0:01:02]} 7. c3 {[%emt 0:00:00]} Bd6 {[%emt 0:00:11]} 8. Be3 {[%emt 0:00:16]} O-O {[%emt 0:00:26]} 9. Nbd2 {[%emt 0:00:19]} Qe7 {[%emt 0:00:26]} 10. Qc2 {[%emt 0:00:13]} e5 {[%emt 0:00:37]} 11. O-O {[%emt 0:00:15]} e4 {[%emt 0:00:16]} 12. Be2 {[%emt 0:01:15]} exf3 {[%emt 0:00:38]} 13. Nxf3 {[%emt 0:00:14]} Ne4 {[%emt 0:00:47]} 14. Rae1 {[%emt 0:01:03]} Qf6 {[%emt 0:00:36]} 15. Bd3 {[%emt 0:00:36]} Bf5 {[%emt 0:00:41]} 16. c4 {[%emt 0:01:03]} Qe6 {[%emt 0:01:01]} 17. Nh4 {[%emt 0:04:02]} Rfe8 {[%emt 0:02:28]} 18. Nxf5 {[%emt 0:01:04]} Qxf5 {[%emt 0:01:24]} 19. f3 {[%emt 0:00:20]} Qe6 {[%emt 0:01:24]} 20. fxe4 {[%emt 0:00:39]} dxe4 {[%emt 0:01:05]} 21. Be2 {[%emt 0:01:00]} Qg6 {[%emt 0:00:48]} 22. Bg4 {[%emt 0:00:48]} Ne7 {[%emt 0:01:21]} 23. Bf4 {[%emt 0:01:01]} Bxf4 {[%emt 0:01:41]} 24. Rxf4 {[%emt 0:00:07]} f5 {[%emt 0:00:54]} 25. Bd1 {[%emt 0:00:44]} Nc6 {[%emt 0:06:35]} 26. Qc3 {[%emt 0:00:43]} Rad8 {[%emt 0:02:17]} 27. d5 {[%emt 0:00:26]} Ne5 {[%emt 0:00:56]} 28. Bc2 {[%emt 0:00:32]} Nf3+ {[%emt 0:00:40]} 29. Rxf3 {[%emt 0:01:34]} exf3 {[%emt 0:00:37]} 30. Rxe8+ {[%emt 0:00:01]} Rxe8 {[%emt 0:00:42]} 31. Qxf3 {[%emt 0:00:06]} Re5 {[%emt 0:03:00]} 32. Qf2 {[%emt 0:01:12]} b6 {[%emt 0:01:04]} 33. g4 {[%emt 0:00:46]} Qe8 {[%emt 0:01:01]} 34. Bd3 {[%emt 0:01:28]} fxg4 {[%emt 0:02:32]} 35. hxg4 {[%emt 0:00:06]} Qd7 {[%emt 0:01:29]} 36. Bf5 {[%emt 0:00:55]} Qe7 {[%emt 0:01:27]} 37. Be6+ {[%emt 0:00:02]} Rxe6 {[%emt 0:05:10]} 38. dxe6 {[%emt 0:00:11]} Qc5 {[%emt 0:00:32]} 39. Qxc5 {[%emt 0:00:25]} bxc5 {[%emt 0:00:11]} 40. a3 {[%emt 0:00:54]} Kf8 {[%emt 0:00:49]} 41. Kf2 {[%emt 0:00:41]} Ke7 {[%emt 0:00:16]} 42. Ke3 {[%emt 0:00:09]} Kxe6 {[%emt 0:00:10]} 43. b4 {[%emt 0:00:32]} cxb4 {[%emt 0:01:04]} 44. axb4 {[%emt 0:00:05]} Kd6 {[%emt 0:00:20]} 45. Ke4 {[%emt 0:00:37]} Ke6 {[%emt 0:00:19]} 46. c5 {[%emt 0:00:17]} Kd7 {[%emt 0:00:27]} 47. b5 {[%emt 0:00:15]} Kc7 {[%emt 0:00:49]} 48. Kd5 {[%emt 0:00:13]} h6 {[%emt 0:00:32]} 49. Ke6 {[%emt 0:00:13]} g6 {[%emt 0:00:12]} 50. Kf6 {[%emt 0:00:27]} h5 {[%emt 0:00:47]} 51. gxh5 {[%emt 0:00:04]} gxh5 {[%emt 0:00:05]} 52. Kg5 {[%emt 0:00:05]} h4 {[%emt 0:00:24]} 53. Kxh4 {[%emt 0:00:04]} Kb7 {[%emt 0:00:08]} 54. Kg5 {[%emt 0:00:09]} a5 {[%emt 0:00:19]} 55. bxa6+ {[%emt 0:00:42]} Kxa6 {[%emt 0:00:09]} 1/2-1/2

[Event "DVM U10 2024"]
[Site "Duesseldorf"]
[Date "2024.12.28"]
[Round "5"]
[White "Wessels, Keke"]
[Black "Riazi, Dominik"]
[Result "0-1"]
[ECO "D00"]
[WhiteElo "1568"]
[BlackElo "1602"]
[Annotator "NA RC"]
[PlyCount "81"]
[EventDate "2024.12.23"]
[EventType "team-tourn"]
[EventRounds "7"]
[EventCountry "GER"]
[SourceTitle "playchess.com"]
[Source "ChessBase"]
[SourceQuality "1"]
[TimeControl "3300+5"]

1. d4 {[%emt 0:00:07]} d5 {[%emt 0:00:02]} 2. Nc3 {[%emt 0:00:10]} Nf6 {[%emt 0:00:31]} 3. Bf4 {[%emt 0:00:19]} c5 {[%emt 0:00:46]} 4. e3 {[%emt 0:00:16]} a6 {[%emt 0:01:30]} 5. Qd2 {[%emt 0:02:24]} Nc6 {[%emt 0:02:03]} 6. Nf3 {[%emt 0:00:16]} Bf5 {[%emt 0:01:25]} 7. Bd3 {[%emt 0:01:13]} Bxd3 {[%emt 0:00:48]} 8. Qxd3 {[%emt 0:00:13]} e6 {[%emt 0:00:26]} 9. h3 {[%emt 0:00:36]} c4 {[%emt 0:01:44]} 10. Qd2 {[%emt 0:00:46]} Be7 {[%emt 0:06:27]} 11. O-O {[%emt 0:01:47]} b5 {[%emt 0:01:39]} 12. Rfe1 {[%emt 0:03:07]} Bb4 {[%emt 0:01:15]} 13. Qd1 {[%emt 0:02:32]} Bxc3 {[%emt 0:04:21]} 14. bxc3 {[%emt 0:00:27]} Ne4 {[%emt 0:01:01]} 15. Qc1 {[%emt 0:01:57]} Qa5 {[%emt 0:04:44]} 16. Ne5 {[%emt 0:03:20]} Nxe5 {[%emt 0:00:23]} 17. Bxe5 {[%emt 0:00:35]} O-O {[%emt 0:00:23]} 18. a3 {[%emt 0:03:13]} Rfd8 {[%emt 0:06:24]} 19. Qd1 {[%emt 0:04:35]} Qxc3 {[%emt 0:03:11]} 20. f3 {[%emt 0:08:31]} Nd6 {[%emt 0:00:47]} 21. Bg3 {[%emt 0:01:11]} Ra7 {[%emt 0:03:08]} 22. Re2 {[%emt 0:01:28]} Rb7 {[%emt 0:01:08]} 23. Qc1 {[%emt 0:00:49]} Qa5 {[%emt 0:00:42]} 24. Be1 {[%emt 0:00:56]} Qb6 {[%emt 0:00:17]} 25. Bb4 {[%emt 0:00:36]} a5 {[%emt 0:00:59]} 26. Bc5 {[%emt 0:01:42]} Qc6 {[%emt 0:00:15]} 27. c3 {[%emt 0:00:25]} Rbb8 {[%emt 0:00:39]} 28. Rb1 {[%emt 0:00:56]} Re8 {[%emt 0:00:55]} 29. Reb2 {[%emt 0:00:22]} Nf5 {[%emt 0:00:54]} 30. Kf2 {[%emt 0:01:18]} a4 {[%emt 0:00:24]} 31. Rb4 {[%emt 0:01:32]} Rb7 {[%emt 0:01:03]} 32. R1b2 {[%emt 0:00:41]} Reb8 {[%emt 0:00:54]} 33. Qh1 {[%emt 0:02:12]} Qc7 {[%emt 0:00:56]} 34. h4 {[%emt 0:02:20]} Qg3+ {[%emt 0:01:24]} 35. Ke2 {[%emt 0:00:12]} Nxh4 {[%emt 0:00:37]} 36. Kf1 {[%emt 0:02:13]} Nf5 {[%emt 0:00:21]} 37. Ke2 {[%emt 0:00:31]} Nh4 {[%emt 0:00:15]} 38. Kd1 {[%emt 0:00:32]} Nf5 {[%emt 0:01:02]} 39. Qg1 {[%emt 0:00:29]} Nh4 {[%emt 0:00:31]} 40. Ke2 {[%emt 0:00:52]} Nxf3 {[%emt 0:01:16]} 41. Kd1 {[%emt 0:00:39]} 0-1

[Event "DVM U10 2024"]
[Site "Duesseldorf"]
[Date "2024.12.28"]
[Round "5"]
[White "El-Issa, Erik"]
[Black "Mueller, Konstantin"]
[Result "0-1"]
[ECO "B22"]
[WhiteElo "1530"]
[BlackElo "1957"]
[Annotator "RC"]
[PlyCount "88"]
[EventDate "2024.12.23"]
[EventType "team-tourn"]
[EventRounds "7"]
[EventCountry "GER"]
[SourceTitle "playchess.com"]
[Source "ChessBase"]
[SourceQuality "1"]
[TimeControl "3300+5"]

1. e4 {[%emt 0:00:03]} c5 {[%emt 0:00:05]} 2. c3 {[%emt 0:00:08]} Nf6 {[%emt 0:00:03]} 3. e5 {[%emt 0:00:10]} Nd5 {[%emt 0:00:03]} 4. d4 {[%emt 0:00:10]} cxd4 {[%emt 0:00:07]} 5. cxd4 {[%emt 0:00:07]} d6 {[%emt 0:00:10]} 6. exd6 {[%emt 0:00:35]} Qxd6 {[%emt 0:00:13]} 7. Nc3 {[%emt 0:00:31]} Nc6 {[%emt 0:00:17]} 8. Be3 {[%emt 0:02:14]} Bf5 {[%emt 0:02:12]} 9. Nf3 {[%emt 0:00:41]} e6 {[%emt 0:00:12]} 10. a3 {[%emt 0:00:52]} Be7 {[%emt 0:00:20]} 11. Bc4 {[%emt 0:00:22]} Nxc3 {[%emt 0:05:42]} 12. bxc3 {[%emt 0:00:11]} O-O {[%emt 0:00:11]} 13. O-O {[%emt 0:00:13]} Rfd8 {[%emt 0:00:26]} 14. h3 {[%emt 0:01:27]} Rac8 {[%emt 0:00:21]} 15. a4 {[%emt 0:01:36]} Bf6 {[%emt 0:07:27]} 16. a5 {[%emt 0:00:55]} a6 {[%emt 0:01:01]} 17. Qb3 {[%emt 0:00:30]} Qc7 {[%emt 0:00:15]} 18. Qb6 {[%emt 0:01:04]} Ne7 {[%emt 0:02:59]} 19. Qxc7 {[%emt 0:01:25]} Rxc7 {[%emt 0:00:33]} 20. Nd2 {[%emt 0:00:28]} Rdc8 {[%emt 0:01:03]} 21. Ra4 {[%emt 0:00:26]} Nd5 {[%emt 0:01:59]} 22. Rc1 {[%emt 0:01:00]} b5 {[%emt 0:00:31]} 23. axb6 {[%emt 0:00:18]} Nxb6 {[%emt 0:00:12]} 24. Bxa6 {[%emt 0:01:53]} Nxa4 {[%emt 0:00:28]} 25. Bxc8 {[%emt 0:00:30]} Rxc8 {[%emt 0:00:05]} 26. c4 {[%emt 0:00:26]} h6 {[%emt 0:00:39]} 27. c5 {[%emt 0:00:14]} Nb6 {[%emt 0:01:24]} 28. Kh2 {[%emt 0:01:15]} Nd5 {[%emt 0:02:19]} 29. Nc4 {[%emt 0:01:26]} Bg6 {[%emt 0:00:36]} 30. Kg3 {[%emt 0:02:31]} Be7 {[%emt 0:01:34]} 31. Ne5 {[%emt 0:00:49]} Bd8 {[%emt 0:00:50]} 32. Kf3 {[%emt 0:01:37]} Bf6 {[%emt 0:00:19]} 33. Nd7 {[%emt 0:01:36]} Rc7 {[%emt 0:00:44]} 34. Nb6 {[%emt 0:02:36]} Nb4 {[%emt 0:02:53]} 35. Nc4 {[%emt 0:03:03]} Nc2 {[%emt 0:00:52]} 36. Rd1 {[%emt 0:01:25]} h5 {[%emt 0:02:05]} 37. g3 {[%emt 0:01:42]} Nb4 {[%emt 0:00:36]} 38. Bf4 {[%emt 0:01:04]} Rc6 {[%emt 0:00:20]} 39. Be3 {[%emt 0:01:41]} Nd5 {[%emt 0:00:54]} 40. Nd6 {[%emt 0:00:44]} Be7 {[%emt 0:00:37]} 41. Nc4 {[%emt 0:00:38]} Nc3 {[%emt 0:00:36]} 42. Rc1 {[%emt 0:02:19]} Be4+ {[%emt 0:00:14]} 43. Kf4 {[%emt 0:00:46]} g5+ {[%emt 0:00:07]} 44. Ke5 {[%emt 0:00:13]} f6# {[%emt 0:00:07]} 0-1